bitfinex/quotes_SOLUSD_20250525
["timestamp","ask_amount","ask_price","bid_price","bid_amount"]
[1748140102755,13.39498228,171.73,171.71,34.86]
[1748140105260,13.39498228,171.72,171.68,82.5]
[1748140105441,13.39498228,171.72,171.69,34.86]
[1748140107048,0.14216157,171.79,171.69,34.86]
[1748140107049,26.14216157,171.79,171.69,48.25498228]
[1748140107358,13.39498228,171.73,171.69,34.86]
[1748140107550,13.39498228,171.73,171.7,256.92]
[1748140109768,26.14216157,171.79,171.7,256.92]
[1748140109769,13.39498228,171.72,171.7,256.92]
[1748140109954,13.39498228,171.72,171.7,39.38]
[1748140110370,13.39498228,171.73,171.7,39.38]
[1748140110544,26.14216157,171.79,171.7,39.38]
[1748140110866,13.39498228,171.74,171.69,48.25498228]
[1748140111046,13.39498228,171.73,171.69,34.86]
[1748140115244,0.14216157,171.79,171.69,34.86]
[1748140115245,13.39498228,171.72,171.69,34.86]
[1748140115861,13.39498228,171.73,171.69,34.86]
[1748140116050,13.39498228,171.73,171.69,48.25498228]
[1748140116673,13.39498228,171.74,171.69,48.25498228]
[1748140117360,13.39498228,171.74,171.7,34.86]
[1748140117566,13.39498228,171.74,171.71,256.72]
[1748140119466,13.39498228,171.73,171.71,256.72]
[1748140120371,0.14216157,171.77,171.71,256.72]
[1748140120580,13.39498228,171.73,171.71,39.18]
[1748140120752,13.39498228,171.73,171.7,34.86]
[1748140125583,0.14216157,171.77,171.7,34.86]
[1748140125763,13.39498228,171.73,171.7,34.86]
[1748140125960,13.39498228,171.76,171.71,13.39498228]
[1748140126264,13.39498228,171.77,171.71,13.39498228]
[1748140126489,13.39498228,171.77,171.72,13.39498228]
[1748140127487,13.39498228,171.77,171.73,256.72]
[1748140127679,13.39498228,171.77,171.73,270.11498228]
[1748140127879,13.39498228,171.77,171.73,52.57498228]
[1748140129496,26.14216157,171.82,171.73,52.57498228]
[1748140129677,13.39498228,171.77,171.73,13.39498228]
[1748140130583,26.14216157,171.82,171.73,13.39498228]
[1748140130783,13.39498228,171.77,171.73,13.39498228]
[1748140131388,13.39498228,171.77,171.72,19.80078228]
[1748140137687,13.39498228,171.77,171.73,256.68]
[1748140137865,13.39498228,171.77,171.73,39.18]
[1748140138269,26.14216157,171.82,171.73,13.39498228]
[1748140138567,13.39498228,171.77,171.73,13.39498228]
[1748140139104,6.8418673,171.85,171.76,13.39498228]
[1748140139274,13.39498228,171.82,171.77,48.25498228]
[1748140140583,13.39498228,171.81,171.77,48.25498228]
[1748140140784,13.39498228,171.8,171.77,34.86]
[1748140141182,1.6434,171.85,171.73,82.5]
[1748140141183,13.39498228,171.78,171.73,82.5]
[1748140141388,13.39498228,171.77,171.74,34.86]
[1748140141794,13.39498228,171.78,171.74,34.86]
[1748140142295,13.39498228,171.77,171.74,34.86]
[1748140145106,44.79181043,171.84,171.74,34.86]
[1748140145591,13.39498228,171.78,171.74,34.86]
[1748140147504,13.39498228,171.78,171.75,256.6]
[1748140148402,44.79181043,171.84,171.75,256.6]
[1748140148697,0.14216157,171.84,171.75,39.12]
[1748140149020,13.39498228,171.77,171.74,34.86]
[1748140150407,13.39498228,171.76,171.71,1.5325]
[1748140150602,26.14216157,171.78,171.72,34.86]
[1748140150807,13.39498228,171.73,171.72,34.86]
[1748140151019,13.39498228,171.76,171.72,34.86]
[1748140151312,13.39498228,171.77,171.72,48.25498228]
[1748140152301,13.39498228,171.76,171.72,34.86]
[1748140152509,13.39498228,171.75,171.72,34.86]
[1748140152823,13.39498228,171.76,171.72,34.86]
[1748140153337,13.53714385,171.81,171.72,34.86]
[1748140153504,13.39498228,171.76,171.72,34.86]
[1748140155321,26.0,171.82,171.72,34.86]
[1748140155322,13.39498228,171.78,171.73,13.39498228]
[1748140155822,13.39498228,171.77,171.73,13.39498228]
[1748140156011,13.39498228,171.77,171.72,48.25498228]
[1748140157510,13.39498228,171.77,171.73,256.62]
[1748140159015,13.39498228,171.76,171.68,89.0701]
[1748140159222,13.39498228,171.75,171.7,13.39498228]
[1748140159420,13.39498228,171.73,171.71,34.86]
[1748140159925,13.39498228,171.73,171.68,102.46508228]
[1748140160110,13.39498228,171.73,171.69,34.86]
[1748140163217,13.39498228,171.72,171.68,6.5701]
[1748140163409,13.39498228,171.7,171.69,34.86]
[1748140167735,13.39498228,171.7,171.69,291.5]
[1748140170246,39.53714385,171.7,171.6,6.3677]
[1748140170539,13.39498228,171.65,171.61,34.86]
[1748140171045,26.0,171.7,171.62,13.39498228]
[1748140171354,13.39498228,171.69,171.64,13.39498228]
[1748140174055,13.39498228,171.68,171.63,13.39498228]
[1748140174622,26.0,171.7,171.63,95.89498228]
[1748140174827,13.39498228,171.68,171.63,95.89498228]
[1748140177434,13.39498228,171.68,171.64,256.94]
[1748140177639,8.58027239,171.68,171.64,256.94]
[1748140177961,8.58027239,171.68,171.65,34.88]
[1748140179166,8.58027239,171.68,171.66,34.88]
[1748140179468,8.58027239,171.67,171.64,256.94]
[1748140179642,8.58027239,171.66,171.65,34.88]
[1748140180043,2.14647239,171.67,171.65,34.88]
[1748140180256,8.58027239,171.66,171.65,34.88]
[1748140181668,13.40864701,171.66,171.65,34.88]
[1748140183880,13.40864701,171.66,171.62,13.40864701]
[1748140184085,10.71574701,171.66,171.63,34.88]
[1748140184781,26.0,171.7,171.63,34.88]
[1748140184961,13.40864701,171.66,171.63,34.88]
[1748140185787,13.40864701,171.65,171.63,34.88]
[1748140186258,13.40864701,171.65,171.64,34.88]
[1748140186649,13.40864701,171.66,171.64,34.88]
[1748140187479,13.40864701,171.66,171.65,256.96]
[1748140187661,13.40864701,171.66,171.65,291.84]
[1748140189883,13.40864701,171.66,171.65,74.24]
[1748140190890,13.40864701,171.66,171.59,84.0055]
[1748140191090,13.40864701,171.63,171.6,34.88]
[1748140193494,13.40864701,171.63,171.61,34.88]
[1748140197499,13.40864701,171.63,171.62,257.02]
[1748140199227,13.40864701,171.64,171.62,257.02]
[1748140199405,13.40864701,171.64,171.62,39.38]
[1748140199902,13.40864701,171.63,171.62,39.38]
[1748140200923,13.40864701,171.63,171.59,1.5055]
[1748140201097,13.40864701,171.62,171.6,34.88]
[1748140201596,8.58498793,171.63,171.6,34.88]
[1748140202332,9.70836813,171.71,171.6,34.88]
[1748140202333,3.09796813,171.71,171.63,6.1301]
[1748140202534,8.58498793,171.71,171.67,8.58498793]
[1748140202736,8.58498793,171.68,171.65,1.5482]
[1748140202900,8.58498793,171.66,171.63,88.6301]
[1748140203096,8.58498793,171.66,171.64,34.88]
[1748140203303,0.14216157,171.71,171.61,1.5482]
[1748140203304,8.58498793,171.65,171.61,1.5482]
[1748140203535,8.58498793,171.65,171.62,34.88]
[1748140203822,8.58498793,171.66,171.62,34.88]
[1748140205398,8.58498793,171.66,171.61,10.13318793]
[1748140205598,8.58498793,171.66,171.63,34.88]
[1748140206805,8.58498793,171.65,171.63,34.88]
[1748140207625,8.58498793,171.65,171.64,256.76]
[1748140207797,8.58498793,171.65,171.64,291.64]
[1748140210130,18.64964886,171.7,171.64,291.64]
[1748140210424,8.58498793,171.65,171.64,34.88]
[1748140210926,8.58498793,171.65,171.59,6.1301]
[1748140211229,8.58498793,171.61,171.6,34.88]
[1748140211728,8.08498793,171.61,171.6,34.88]
[1748140212231,26.0,171.68,171.6,43.46498793]
[1748140212407,8.58498793,171.65,171.6,43.46498793]
[1748140215149,8.58498793,171.65,171.61,8.58498793]
[1748140215663,13.41047381,171.65,171.61,13.41047381]
[1748140217471,13.41047381,171.65,171.62,256.78]
[1748140217970,13.41047381,171.64,171.62,256.78]
[1748140218360,13.41047381,171.64,171.62,39.14]
[1748140219364,13.41047381,171.65,171.62,39.14]
[1748140219563,13.41047381,171.65,171.6,48.29047381]
[1748140223061,13.41047381,171.64,171.57,84.1348]
[1748140223265,13.41047381,171.63,171.58,34.88]
[1748140223559,13.41047381,171.63,171.58,48.29047381]
[1748140225263,13.41047381,171.63,171.58,34.88]
[1748140225557,13.41047381,171.63,171.58,13.41047381]
[1748140225763,13.41047381,171.62,171.59,34.88]
[1748140226070,13.41047381,171.62,171.57,15.04527381]
[1748140226268,13.41047381,171.62,171.58,34.88]
[1748140227476,13.41047381,171.62,171.59,256.78]
[1748140228960,13.41047381,171.64,171.6,13.41047381]
[1748140229265,13.41047381,171.63,171.59,52.55047381]
[1748140229464,13.41047381,171.63,171.58,13.41047381]
[1748140229765,13.41047381,171.63,171.6,34.88]
[1748140230463,13.41047381,171.61,171.57,1.6348]
[1748140230663,13.41047381,171.6,171.55,88.7312]
[1748140230860,13.41047381,171.6,171.58,34.88]
[1748140231046,13.41047381,171.61,171.58,34.88]
[1748140231559,26.0,171.68,171.6,13.41047381]
[1748140231747,13.41047381,171.65,171.61,13.41047381]
[1748140232157,13.41047381,171.65,171.6,13.41047381]
[1748140233749,0.14216157,171.6,171.53,1.573]
[1748140233972,13.41047381,171.54,171.49,15.05567381]
[1748140234282,13.41047381,171.52,171.5,34.88]
[1748140234472,13.41047381,171.51,171.5,34.88]
[1748140234974,13.41047381,171.52,171.5,34.88]
[1748140235357,13.41047381,171.51,171.48,8.30135268]
[1748140235560,13.41047381,171.49,171.48,8.30135268]
[1748140235886,20.24724886,171.58,171.48,48.29047381]
[1748140235887,1.5976,171.58,171.48,48.29047381]
[1748140236178,13.41047381,171.53,171.48,48.29047381]
[1748140236347,13.41047381,171.51,171.48,34.88]
[1748140236775,13.41047381,171.52,171.48,48.29047381]
[1748140236960,13.41047381,171.52,171.48,34.88]
[1748140237161,13.41047381,171.52,171.48,48.29047381]
[1748140237695,13.41047381,171.52,171.49,256.82]
[1748140239081,13.41047381,171.53,171.49,270.23047381]
[1748140239254,13.41047381,171.53,171.49,39.12]
[1748140239454,13.41047381,171.52,171.49,39.12]
[1748140240558,26.0,171.56,171.49,39.12]
[1748140240877,13.41047381,171.53,171.48,48.29047381]
[1748140241058,13.41047381,171.52,171.48,48.29047381]
[1748140241675,13.41047381,171.52,171.48,34.88]
[1748140241881,13.41047381,171.52,171.48,48.29047381]
[1748140244667,13.41047381,171.53,171.48,48.29047381]
[1748140245490,13.41047381,171.52,171.48,34.88]
[1748140247189,13.41047381,171.52,171.48,48.29047381]
[1748140247388,26.0,171.56,171.48,48.29047381]
[1748140247578,13.41047381,171.53,171.49,256.9]
[1748140248189,13.41047381,171.61,171.52,15.01287381]
[1748140248388,13.41047381,171.61,171.56,13.41047381]
[1748140248598,39.41047381,171.61,171.56,13.41047381]
[1748140249180,13.41047381,171.59,171.54,13.41047381]
[1748140249386,13.41047381,171.57,171.52,84.1024]
[1748140249585,13.41047381,171.57,171.53,34.9]
[1748140250081,13.41047381,171.58,171.53,48.31047381]
[1748140251105,13.41047381,171.58,171.54,13.41047381]
[1748140252096,13.41047381,171.6,171.56,13.41047381]
[1748140252798,39.41047381,171.61,171.56,13.41047381]
[1748140253192,0.14216157,171.63,171.57,13.41047381]
[1748140253398,13.41047381,171.62,171.58,48.31047381]
[1748140253778,13.41047381,171.61,171.58,34.9]
[1748140254478,26.0,171.64,171.58,34.9]
[1748140254706,13.41047381,171.61,171.58,34.9]
[1748140255008,13.41047381,171.62,171.58,34.9]
[1748140255676,0.14216157,171.65,171.58,34.9]
[1748140255891,13.41047381,171.62,171.58,34.9]
[1748140256202,13.41047381,171.61,171.58,34.9]
[1748140257506,13.41047381,171.61,171.59,256.86]
[1748140262307,13.41047381,171.61,171.58,34.9]
[1748140263104,13.41047381,171.61,171.55,88.7298]
[1748140263105,13.41047381,171.59,171.55,88.7298]
[1748140263304,13.41047381,171.6,171.56,34.9]
[1748140263497,13.41047381,171.6,171.56,48.31047381]
[1748140263807,13.41047381,171.6,171.56,34.9]
[1748140264412,13.41047381,171.59,171.56,34.9]
[1748140264591,13.41047381,171.58,171.56,34.9]
[1748140264910,13.41047381,171.59,171.56,34.9]
[1748140265999,13.41047381,171.59,171.52,84.1024]
[1748140266000,13.41047381,171.59,171.57,34.9]
[1748140266195,0.14216157,171.62,171.58,34.9]
[1748140266517,13.41047381,171.59,171.58,34.9]
[1748140267617,13.41047381,171.59,171.58,291.68]
[1748140267911,26.0,171.64,171.58,291.68]
[1748140268102,13.41047381,171.62,171.58,291.68]
[1748140268290,13.41047381,171.62,171.58,34.9]
[1748140269316,0.14216157,171.65,171.58,34.9]
[1748140269517,13.41047381,171.64,171.59,13.41047381]
[1748140269706,13.41047381,171.68,171.58,118.9581]
[1748140269906,13.41047381,171.68,171.63,13.41047381]
[1748140270218,13.41047381,171.68,171.64,34.88]
[1748140271525,13.41047381,171.67,171.64,34.88]
[1748140271826,13.41047381,171.68,171.64,34.88]
[1748140272415,26.0,171.69,171.64,34.88]
[1748140272599,13.41047381,171.68,171.64,34.88]
[1748140272800,13.41047381,171.69,171.65,13.41047381]
[1748140272998,2.91603278,171.72,171.64,34.88]
[1748140272999,13.41047381,171.72,171.67,13.41047381]
[1748140273204,13.41047381,171.73,171.68,48.29047381]
[1748140273406,13.41047381,171.74,171.69,13.41047381]
[1748140273717,13.41047381,171.73,171.69,13.41047381]
[1748140273899,13.41047381,171.73,171.68,48.29047381]
[1748140275339,0.14216157,171.75,171.68,34.88]
[1748140275502,13.41047381,171.72,171.68,34.88]
[1748140277619,13.41047381,171.72,171.69,256.7]
[1748140278828,13.41047381,171.72,171.69,39.06]
[1748140280835,13.41047381,171.72,171.68,34.88]
[1748140281328,13.41047381,171.72,171.58,6.2696]
[1748140281329,0.14216157,171.68,171.58,6.2696]
[1748140281631,13.41047381,171.62,171.59,34.88]
[1748140281810,26.0,171.63,171.59,34.88]
[1748140282010,39.41047381,171.63,171.59,34.88]
[1748140282531,26.0,171.63,171.59,48.29047381]
[1748140283042,26.0,171.71,171.6,13.41047381]
[1748140283252,13.41047381,171.66,171.61,13.41047381]
[1748140284334,13.41047381,171.65,171.6,13.41047381]
[1748140284520,13.41047381,171.64,171.6,13.41047381]
[1748140285350,13.41047381,171.66,171.61,13.41047381]
[1748140285638,13.41047381,171.66,171.59,34.88]
[1748140285814,13.41047381,171.66,171.61,13.41047381]
[1748140286333,13.41047381,171.65,171.6,13.41047381]
[1748140286629,13.41047381,171.64,171.59,130.79047381]
[1748140287333,13.41047381,171.65,171.6,13.41047381]
[1748140287640,13.41047381,171.65,171.61,256.68]
[1748140289344,13.41047381,171.65,171.6,13.41047381]
[1748140290963,13.41047381,171.64,171.59,130.79047381]
[1748140291770,13.41047381,171.65,171.6,48.29047381]
[1748140291976,1.639,171.72,171.62,13.41047381]
[1748140292168,13.41047381,171.67,171.62,13.41047381]
[1748140292467,26.0,171.69,171.62,13.41047381]
[1748140292673,13.41047381,171.67,171.62,13.41047381]
[1748140293863,26.0,171.69,171.62,13.41047381]
[1748140294059,13.41047381,171.67,171.62,13.41047381]
[1748140294264,13.41047381,171.68,171.63,13.41047381]
[1748140294465,13.41047381,171.68,171.64,34.88]
[1748140296752,26.0,171.74,171.67,13.41047381]
[1748140296953,9.84275356,171.77,171.71,13.41047381]
[1748140297186,13.41047381,171.75,171.72,34.88]
[1748140297373,13.41047381,171.73,171.67,13.41047381]
[1748140297577,0.14216157,171.75,171.7,13.41047381]
[1748140297785,0.14216157,171.8,171.73,13.41047381]
[1748140298083,39.41047381,171.79,171.74,48.29047381]
[1748140298563,13.41047381,171.78,171.74,34.88]
[1748140299171,13.41047381,171.77,171.74,34.88]
[1748140299489,13.41047381,171.75,171.74,34.88]
[1748140299863,26.0,171.79,171.74,34.88]
[1748140300163,13.41047381,171.76,171.74,34.88]
[1748140300375,26.0,171.79,171.74,34.88]
[1748140300567,13.41047381,171.77,171.74,34.88]
[1748140300769,13.41047381,171.78,171.74,34.88]
[1748140301987,39.41047381,171.79,171.74,48.29047381]
[1748140302184,26.0,171.79,171.75,13.41047381]
[1748140303004,13.41047381,171.8,171.75,13.41047381]
[1748140303372,13.41047381,171.81,171.76,13.41047381]
[1748140304083,0.14216157,171.85,171.79,13.41047381]
[1748140304258,13.41047381,171.84,171.8,34.86]
[1748140304682,13.41047381,171.83,171.8,34.86]
[1748140305985,13.41047381,171.82,171.8,34.86]
[1748140306188,13.41047381,171.83,171.8,34.86]
[1748140306391,26.0,171.85,171.8,34.86]
[1748140306588,13.41047381,171.84,171.8,34.86]
[1748140306888,13.41047381,171.83,171.8,34.86]
[1748140307578,13.41047381,171.83,171.81,256.48]
[1748140307875,13.41047381,171.83,171.81,217.52]
[1748140307876,26.0,171.82,171.81,217.52]
[1748140308090,39.41047381,171.82,171.81,291.34]
[1748140308880,39.41047381,171.82,171.81,73.82]
[1748140309393,39.55263538,171.82,171.81,73.82]
[1748140309598,13.41047381,171.82,171.81,34.86]
[1748140310693,13.55263538,171.82,171.81,34.86]
[1748140312393,0.14216157,171.82,171.81,34.86]
[1748140312582,13.55263538,171.82,171.81,34.86]
[1748140316198,0.14216157,171.81,171.73,88.6197]
[1748140316379,13.41047381,171.77,171.74,34.86]
[1748140316702,13.41047381,171.78,171.74,34.86]
[1748140317503,13.41047381,171.78,171.75,256.44]
[1748140317803,13.41047381,171.78,171.75,38.96]
[1748140318094,13.41047381,171.79,171.74,48.27047381]
[1748140318725,0.14216157,171.82,171.74,48.27047381]
[1748140318872,13.41047381,171.79,171.74,48.27047381]
[1748140319078,1.6664,171.91,171.78,13.41047381]
[1748140319384,0.14216157,171.9,171.8,13.41047381]
[1748140319593,13.41047381,171.86,171.81,13.41047381]
[1748140319789,13.41047381,171.87,171.82,13.41047381]
[1748140320097,13.41047381,171.86,171.82,13.41047381]
[1748140320303,13.41047381,171.86,171.81,19.53227381]
[1748140320605,13.41047381,171.86,171.82,13.41047381]
[1748140322302,13.41047381,171.86,171.81,19.53227381]
[1748140322683,26.0,171.89,171.82,13.41047381]
[1748140323003,13.41047381,171.86,171.82,13.41047381]
[1748140323798,13.41047381,171.86,171.81,19.53227381]
[1748140327305,13.41047381,171.86,171.82,13.41047381]
[1748140327510,13.41047381,171.86,171.83,256.28]
[1748140327681,13.41047381,171.86,171.84,34.84]
[1748140328108,26.0,171.89,171.84,34.84]
[1748140328286,13.41047381,171.87,171.84,34.84]
[1748140328488,13.41047381,171.88,171.84,34.84]
[1748140329880,26.0,171.91,171.84,34.84]
[1748140330083,13.41047381,171.88,171.84,34.84]
[1748140330802,13.41047381,171.86,171.84,34.84]
[1748140331589,13.41047381,171.87,171.84,34.84]
[1748140332310,13.41047381,171.88,171.84,34.84]
[1748140333497,13.41047381,171.88,171.84,48.25047381]
[1748140334206,13.41047381,171.89,171.84,48.25047381]
[1748140334390,1.6372,171.95,171.86,13.41047381]
[1748140334591,13.41047381,171.9,171.85,84.1108]
[1748140334793,13.41047381,171.9,171.85,15.02127381]
[1748140335100,13.41047381,171.88,171.85,1.6108]
[1748140335609,0.14216157,171.93,171.85,1.6108]
[1748140335818,13.41047381,171.89,171.85,13.41047381]
[1748140336009,13.41047381,171.89,171.84,130.75047381]
[1748140337606,0.14216157,171.91,171.85,256.24]
[1748140337804,13.41047381,171.89,171.85,256.24]
[1748140338122,13.41047381,171.89,171.85,38.86]
[1748140339737,13.41047381,171.9,171.86,13.41047381]
[1748140340542,0.14216157,171.93,171.86,13.41047381]
[1748140340722,13.41047381,171.9,171.86,13.41047381]
[1748140341327,13.41047381,171.91,171.86,13.41047381]
[1748140341814,0.14216157,171.94,171.86,13.41047381]
[1748140342024,13.41047381,171.91,171.87,13.41047381]
[1748140342226,13.41047381,171.92,171.87,13.41047381]
[1748140342606,13.41047381,171.91,171.87,13.41047381]
[1748140343899,27.6372,171.95,171.87,13.41047381]
[1748140344220,26.0,171.95,171.87,13.41047381]
[1748140344442,13.41047381,171.91,171.87,13.41047381]
[1748140346243,13.41047381,171.91,171.86,13.41047381]
[1748140347561,13.41047381,171.91,171.87,256.22]
[1748140347852,26.0,171.95,171.87,256.22]
[1748140348025,13.41047381,171.92,171.87,269.63047381]
[1748140348226,13.41047381,171.92,171.87,52.27047381]
[1748140348526,13.41047381,171.92,171.87,13.41047381]
[1748140348937,13.41047381,171.92,171.87,95.91047381]
[1748140349246,13.41047381,171.96,171.91,13.41047381]
[1748140349458,13.41047381,171.96,171.92,34.84]
[1748140349669,13.41047381,171.97,171.92,48.25047381]
[1748140350029,13.41047381,171.96,171.92,34.84]
[1748140350328,13.41047381,171.97,171.92,48.25047381]
[1748140351864,13.41047381,171.96,171.92,34.84]
[1748140352046,26.0,172.02,171.93,13.41047381]
[1748140352234,13.41047381,171.97,171.93,13.41047381]
[1748140353273,13.41047381,171.96,171.92,117.34]
[1748140353426,13.41047381,171.95,171.93,34.82]
[1748140354048,13.41047381,171.94,171.89,13.41047381]
[1748140354238,13.41047381,171.93,171.9,34.82]
[1748140354552,13.41047381,171.94,171.9,34.82]
[1748140356037,13.41047381,171.95,171.9,48.23047381]
[1748140357054,13.41047381,171.96,171.91,13.41047381]
[1748140357548,18.79181043,172.02,171.92,256.04]
[1748140357724,13.41047381,171.96,171.92,256.04]
[1748140358127,18.79181043,172.02,171.92,256.04]
[1748140358349,18.79181043,172.02,171.92,13.41047381]
[1748140358350,13.41047381,171.97,171.92,13.41047381]
[1748140358551,0.14216157,172.02,171.9,117.32]
[1748140358756,1.6379,172.03,171.93,13.41047381]
[1748140358952,13.41047381,172.01,171.96,13.41047381]
[1748140359159,13.41047381,172.01,171.97,34.82]
[1748140359369,0.14216157,172.05,171.97,34.82]
[1748140359669,13.41047381,172.0,171.97,34.82]
[1748140359864,0.14216157,172.05,171.97,34.82]
[1748140360162,26.0,172.06,171.97,34.82]
[1748140360368,13.41047381,172.01,171.97,48.23047381]
[1748140360754,26.0,172.06,171.97,48.23047381]
[1748140360755,13.41047381,172.02,171.97,48.23047381]
[1748140361858,0.14216157,172.06,171.97,34.82]
[1748140362058,13.41047381,172.02,171.97,48.23047381]
[1748140363968,13.41047381,172.02,171.97,34.82]
[1748140364155,13.41047381,172.02,171.97,48.23047381]
[1748140364684,0.14216157,172.06,171.97,48.23047381]
[1748140364888,1.5063,172.07,171.98,13.41047381]
[1748140365078,13.41047381,172.02,171.97,48.23047381]
[1748140365763,13.41047381,172.02,171.98,13.41047381]
[1748140366264,13.41047381,172.02,171.97,48.23047381]
[1748140367057,0.14216157,172.06,171.97,48.23047381]
[1748140367058,13.41047381,172.01,171.97,48.23047381]
[1748140367462,13.41047381,172.0,171.98,217.22]
[1748140367782,26.82094762,171.99,171.98,217.22]
[1748140367984,26.82094762,171.99,171.85,7.6651]
[1748140367985,73.25805805,171.99,171.85,7.6651]
[1748140368152,13.41047381,171.9,171.85,21.07557381]
[1748140368556,13.41047381,171.88,171.85,7.6651]
[1748140369058,13.41047381,171.89,171.85,7.6651]
[1748140369265,13.41047381,171.89,171.86,34.82]
[1748140370083,13.41047381,171.9,171.86,34.82]
[1748140370690,6.36036157,171.96,171.86,34.82]
[1748140370858,13.41047381,171.91,171.86,48.23047381]
[1748140371804,27.6453,171.99,171.89,13.41047381]
[1748140372095,13.41047381,171.94,171.89,13.41047381]
[1748140372588,0.14216157,171.98,171.89,13.41047381]
[1748140372766,13.41047381,171.95,171.9,13.41047381]
[1748140373271,27.6453,171.99,171.9,13.41047381]
[1748140373472,13.41047381,171.98,171.93,13.41047381]
[1748140373676,13.41047381,171.97,171.94,34.82]
[1748140374383,13.41047381,171.96,171.94,34.82]
[1748140374586,13.41047381,171.95,171.94,34.82]
[1748140374787,13.41047381,171.95,171.89,7.6651]
[1748140374960,13.41047381,171.95,171.9,48.23047381]
[1748140375799,13.41047381,171.98,171.93,13.41047381]
[1748140377202,0.14216157,172.02,171.9,117.32]
[1748140377406,0.14216157,172.03,171.9,117.32]
[1748140377407,13.41047381,171.98,171.93,13.41047381]
[1748140377586,13.41047381,171.98,171.94,256.0]
[1748140378574,13.41047381,171.97,171.94,256.0]
[1748140378775,13.41047381,171.97,171.94,38.74]
[1748140380592,13.41047381,171.95,171.9,130.73047381]
[1748140380809,13.41047381,171.91,171.85,84.0949]
[1748140381112,13.41047381,171.88,171.86,34.82]
[1748140381985,13.41047381,171.89,171.86,34.82]
[1748140383126,13.41047381,171.9,171.86,34.82]
[1748140385487,0.14216157,171.95,171.86,34.82]
[1748140385803,13.41047381,171.9,171.86,34.82]
[1748140386000,0.14216157,171.95,171.86,48.23047381]
[1748140386302,13.41047381,171.91,171.86,48.23047381]
[1748140386704,13.41047381,171.91,171.87,13.41047381]
[1748140387212,13.41047381,171.91,171.86,48.23047381]
[1748140387586,13.41047381,171.91,171.87,256.04]
[1748140387914,13.41047381,171.91,171.87,38.76]
[1748140389512,18.79181043,171.96,171.87,38.76]
[1748140389717,13.41047381,171.9,171.87,38.76]
[1748140390021,13.41047381,171.9,171.85,21.02017381]
[1748140390314,13.41047381,171.9,171.88,34.82]
[1748140391310,13.41047381,171.89,171.82,82.5]
[1748140391504,13.41047381,171.85,171.83,34.82]
[1748140392210,13.41047381,171.86,171.83,34.82]
[1748140394316,13.41047381,171.87,171.83,34.82]
[1748140394721,13.41047381,171.86,171.83,34.82]
[1748140395621,13.41047381,171.85,171.83,34.82]
[1748140396638,13.41047381,171.87,171.83,34.82]
[1748140396813,13.41047381,171.86,171.83,34.82]
[1748140397122,13.41047381,171.9,171.83,34.82]
[1748140397319,13.41047381,171.85,171.83,34.82]
[1748140397517,13.41047381,171.86,171.84,256.04]
[1748140398327,13.41047381,171.87,171.84,256.04]
[1748140398505,13.41047381,171.87,171.83,34.82]
[1748140400030,13.41047381,171.9,171.85,13.41047381]
[1748140400331,13.41047381,171.92,171.87,13.41047381]
[1748140400514,13.41047381,171.92,171.88,34.84]
[1748140402630,27.6554,171.97,171.89,13.41047381]
[1748140402831,13.41047381,171.94,171.89,13.41047381]
[1748140403831,13.41047381,171.93,171.88,48.25047381]
[1748140404831,1.6554,171.97,171.89,13.41047381]
[1748140405135,13.41047381,171.94,171.89,13.41047381]
[1748140406232,1.6554,171.97,171.89,13.41047381]
[1748140406415,13.41047381,171.94,171.89,13.41047381]
[1748140406727,13.41047381,171.93,171.88,48.25047381]
[1748140407537,13.41047381,171.93,171.89,256.02]
[1748140407940,13.41047381,171.93,171.89,269.43047381]
[1748140408439,1.6554,171.97,171.89,269.43047381]
[1748140408623,13.41047381,171.93,171.89,52.11047381]
[1748140408930,13.41047381,171.93,171.88,34.84]
[1748140409241,13.41047381,171.93,171.88,48.25047381]
[1748140409737,1.6554,171.97,171.88,48.25047381]
[1748140409925,13.41047381,171.93,171.88,48.25047381]
[1748140411332,1.6554,171.97,171.89,13.41047381]
[1748140411333,13.41047381,171.94,171.89,13.41047381]
[1748140411639,13.41047381,171.96,171.91,13.41047381]
[1748140412012,20.17434886,172.02,171.93,13.41047381]